bitfinex-derivatives/quotes_BTCF0:USTF0_20241214
["timestamp","ask_amount","ask_price","bid_price","bid_amount"]
[1734193772430,0.73898819,101490.0,101480.0,0.0319]
[1734193772821,0.73898819,101490.0,101470.0,0.3613]
[1734193773022,0.2977983,101480.0,101470.0,0.3608]
[1734193773225,0.28882539,101480.0,101470.0,0.3608]
[1734193774115,0.28882539,101480.0,101470.0,0.3613]
[1734193776120,0.28882539,101480.0,101470.0,0.3608]
[1734193776825,0.43555334,101480.0,101470.0,0.3608]
[1734193777218,0.67906611,101480.0,101460.0,0.63156403]
[1734193777424,0.32488301,101470.0,101460.0,0.63156403]
[1734193777624,0.31590239,101470.0,101460.0,0.63156403]
[1734193778016,0.31590239,101470.0,101460.0,0.63106403]
[1734193778417,0.2278334,101470.0,101460.0,0.63106403]
[1734193778630,0.3159304,101470.0,101460.0,0.63106403]
[1734193778820,0.2278334,101470.0,101460.0,0.63106403]
[1734193779016,0.2278334,101470.0,101460.0,0.4543]
[1734193779222,0.37456135,101470.0,101460.0,0.4543]
[1734193779628,0.43569643,101470.0,101460.0,0.4543]
[1734193779818,0.37456135,101470.0,101460.0,0.4543]
[1734193780026,0.37456135,101470.0,101460.0,0.4538]
[1734193780221,0.37456135,101470.0,101460.0,0.63106403]
[1734193781124,0.37456135,101470.0,101460.0,0.63156403]
[1734193781330,0.26719467,101470.0,101460.0,0.63156403]
[1734193782226,0.26719467,101470.0,101460.0,0.63106403]
[1734193784227,0.26719467,101470.0,101460.0,0.86731597]
[1734193784532,0.26719467,101470.0,101460.0,0.91659397]
[1734193784729,0.23808448,101470.0,101460.0,0.73932994]
[1734193788435,0.23808448,101470.0,101460.0,0.70912994]
[1734193788734,0.26888448,101470.0,101460.0,0.70912994]
[1734193789146,0.26888448,101470.0,101460.0,0.65985194]
[1734193789326,0.41561243,101470.0,101460.0,0.65985194]
[1734193789524,0.47674751,101470.0,101460.0,0.8070112]
[1734193789730,0.35912975,101470.0,101460.0,0.8070112]
[1734193790233,0.35923118,101470.0,101460.0,0.53795926]
[1734193790429,0.37849619,101470.0,101460.0,0.53795926]
[1734193792726,0.31736111,101470.0,101460.0,0.7742112]
[1734193793137,0.43498809,101470.0,101460.0,0.8054112]
[1734193794038,0.31736111,101470.0,101460.0,0.8054112]
[1734193794236,0.4350082,101470.0,101460.0,0.8054112]
[1734193795140,0.31736111,101470.0,101460.0,0.8054112]
[1734193797642,0.31736111,101470.0,101460.0,0.8546892]
[1734193798141,0.40424805,101470.0,101460.0,0.78179213]
[1734193798336,0.34578712,101470.0,101460.0,1.32266072]
[1734193798541,0.2575201,101470.0,101460.0,1.32266072]
[1734193798736,0.2575201,101470.0,101460.0,1.08004248]
[1734193799140,0.2575201,101470.0,101460.0,1.32254504]
[1734193800041,0.2575201,101470.0,101460.0,1.27941793]
[1734193800341,0.2575201,101470.0,101460.0,0.74192994]
[1734193800342,0.40424805,101470.0,101460.0,0.74192994]
[1734193800537,0.40424805,101470.0,101460.0,0.62825194]
[1734193800735,0.28656111,101470.0,101460.0,0.80547102]
[1734193800940,0.28656111,101470.0,101460.0,0.80547115]
[1734193801137,0.31726111,101470.0,101460.0,0.80547115]
[1734193803037,0.28656111,101470.0,101460.0,0.80547115]
[1734193803248,0.28656111,101470.0,101460.0,0.62825194]
[1734193804242,0.28656111,101470.0,101460.0,0.84864472]
[1734193804447,0.28656111,101470.0,101460.0,0.80551646]
[1734193806750,0.28656111,101470.0,101460.0,0.85479446]
[1734193806940,0.28656111,101470.0,101460.0,0.85481738]
[1734193806941,0.45284396,101470.0,101460.0,0.85481738]
[1734193807141,0.39429803,101470.0,101460.0,1.32337714]
[1734193807340,0.39429803,101470.0,101460.0,1.0871252]
[1734193807539,0.39429803,101470.0,101460.0,1.08712444]
[1734193808550,0.39429803,101470.0,101460.0,1.14825952]
[1734193808551,0.33316295,101470.0,101460.0,1.14825952]
[1734193808855,0.33591547,101470.0,101460.0,1.50224204]
[1734193809158,0.26737746,101470.0,101460.0,1.50224204]
[1734193809546,0.20624238,101470.0,101460.0,1.50224204]
[1734193810551,0.14672795,101480.0,101460.0,1.57052968]
[1734193810753,0.049259,101500.0,101470.0,0.48307016]
[1734193811050,0.06113508,101500.0,101490.0,0.88126108]
[1734193811551,0.06113508,101500.0,101490.0,0.770863]
[1734193811946,0.02016648,101500.0,101490.0,0.83199808]
[1734193812253,0.19685902,101500.0,101490.0,1.00923018]
[1734193812450,0.19685902,101500.0,101490.0,1.24553965]
[1734193812755,0.19685902,101500.0,101490.0,1.00923018]
[1734193813053,0.08130156,101500.0,101490.0,1.24553965]
[1734193813250,0.08130156,101500.0,101490.0,1.18440457]
[1734193813747,0.13055956,101500.0,101490.0,1.18440457]
[1734193814149,0.13055956,101500.0,101490.0,1.24553965]
[1734193814657,0.13055956,101500.0,101490.0,1.06830755]
[1734193814953,0.13055956,101500.0,101490.0,1.00717247]
[1734193815142,0.13055956,101500.0,101490.0,1.06830755]
[1734193815349,0.13055956,101500.0,101490.0,1.00717247]
[1734193815552,0.13055956,101500.0,101490.0,1.18396012]
[1734193816160,0.13055956,101500.0,101490.0,1.2450952]
[1734193816161,0.02016648,101500.0,101490.0,1.2450952]
[1734193817261,0.02066648,101500.0,101490.0,1.2450952]
[1734193818264,0.08130156,101500.0,101490.0,1.18381123]
[1734193818555,0.08130156,101500.0,101490.0,1.24494631]
[1734193819249,0.02066648,101500.0,101490.0,1.24494631]
[1734193819646,0.02066648,101500.0,101490.0,1.00863684]
[1734193822455,0.08180156,101500.0,101490.0,0.94750176]
[1734193823554,0.08180156,101500.0,101490.0,1.00863684]
[1734193824254,0.13105956,101500.0,101490.0,1.00863684]
[1734193825051,0.19219464,101500.0,101490.0,0.7216]
[1734193827150,0.19169464,101500.0,101490.0,0.7216]
[1734193833460,0.049267,101490.0,101480.0,0.3608]
[1734193833655,0.20730208,101490.0,101480.0,0.3608]
[1734193839170,0.26843716,101490.0,101470.0,0.77374823]
[1734193839363,0.17153816,101480.0,101470.0,0.53743876]
[1734193840171,0.17153816,101480.0,101470.0,0.53793876]
[1734193841273,0.17153816,101480.0,101470.0,0.53743876]
[1734193842059,0.049268,101480.0,101470.0,0.58671176]
[1734193842262,0.11040308,101480.0,101470.0,0.58721176]
[1734193843273,0.11040308,101480.0,101470.0,0.88415631]
[1734193843981,0.11040308,101480.0,101470.0,0.82302123]
[1734193844174,0.11040308,101480.0,101470.0,0.82352123]
[1734193844978,0.049268,101480.0,101470.0,0.88465631]
[1734193845177,0.049268,101480.0,101470.0,0.82302123]
[1734193845588,0.10692439,101490.0,101480.0,0.049268]
[1734193845589,0.12308939,101490.0,101480.0,0.049268]
[1734193845879,0.09028939,101490.0,101480.0,0.58690384]
[1734193846081,0.05928939,101490.0,101480.0,0.61850384]
[1734193846268,0.05928939,101490.0,101480.0,0.65090384]
[1734193846872,0.19868246,101500.0,101480.0,0.93118207]
[1734193847080,0.10092748,101500.0,101490.0,0.410063]
[1734193847276,0.19416424,101500.0,101490.0,0.58689884]
[1734193847982,0.10092748,101500.0,101490.0,0.58689884]
[1734193848584,0.06942748,101500.0,101490.0,0.6801356]
[1734193848776,0.06942748,101500.0,101490.0,0.73960923]
[1734193848979,0.02016648,101500.0,101490.0,0.73960923]
[1734193849881,0.06942448,101500.0,101490.0,0.64637247]
[1734193852284,0.16266124,101500.0,101490.0,0.64637247]
[1734193852490,0.06942448,101500.0,101490.0,0.82322821]
[1734193852680,0.10242448,101500.0,101490.0,0.82322821]
[1734193852877,0.10242448,101500.0,101490.0,0.58691874]
[1734193853786,0.10242448,101500.0,101490.0,0.82322821]
[1734193853984,0.10242448,101500.0,101490.0,0.58691874]
[1734193854475,0.10242448,101500.0,101490.0,0.82322821]
[1734193857093,0.19566124,101500.0,101490.0,0.77396521]
[1734193857282,0.19566124,101500.0,101490.0,0.53765574]
[1734193860787,0.19566124,101500.0,101490.0,0.58691874]
[1734193861385,0.10242448,101500.0,101490.0,0.82322821]
[1734193861791,0.10242448,101500.0,101490.0,0.58691874]
[1734193862484,0.05316648,101500.0,101490.0,0.58691874]
[1734193863799,0.05316648,101500.0,101490.0,0.82322821]
[1734193864093,0.19566124,101500.0,101490.0,0.82322821]
[1734193864392,0.19566124,101500.0,101490.0,0.53765574]
[1734193864885,0.34267722,101500.0,101480.0,0.82323121]
[1734193865089,0.17549976,101490.0,101480.0,0.82323121]
[1734193866097,0.17549976,101490.0,101480.0,0.53765574]
[1734193866298,0.20699976,101490.0,101480.0,0.53765574]
[1734193869285,0.35401574,101490.0,101480.0,0.53765574]
[1734193869489,0.35401574,101490.0,101480.0,0.3608]
[1734193870995,0.36368811,101490.0,101480.0,0.3608]
[1734193872698,0.36368811,101490.0,101480.0,0.53765574]
[1734193874890,0.19627898,101490.0,101480.0,0.53765574]
[1734193875101,0.11773863,101490.0,101480.0,0.82323021]
[1734193875287,0.17892396,101490.0,101480.0,0.82323021]
[1734193875494,0.17892396,101490.0,101480.0,0.64637447]
[1734193877202,0.21098211,101490.0,101480.0,0.64637447]
[1734193879302,0.26024511,101490.0,101480.0,0.59710947]
[1734193879505,0.29304511,101490.0,101480.0,0.59710947]
[1734193879801,0.32374511,101490.0,101480.0,0.59710947]
[1734193879995,0.32374511,101490.0,101480.0,0.77414218]
[1734193880499,0.47076109,101490.0,101480.0,0.77414218]
[1734193882509,0.35302246,101490.0,101480.0,0.77414218]
[1734193886106,0.44626594,101490.0,101480.0,0.53783271]
[1734193886297,0.35302246,101490.0,101480.0,0.53783271]
[1734193889313,0.529715,101490.0,101480.0,0.53783271]
[1734193890010,0.62295848,101490.0,101480.0,0.53783271]
[1734193890208,0.62295848,101490.0,101480.0,0.17703271]
[1734193890409,0.049268,101480.0,101470.0,0.53783271]
[1734193890606,0.32043886,101480.0,101470.0,0.53783271]
[1734193895913,0.33011454,101480.0,101470.0,0.53783271]
[1734193896113,0.049273,101470.0,101460.0,0.77414218]
[1734193896311,0.26025022,101470.0,101460.0,0.77464218]
[1734193896508,0.26025022,101470.0,101460.0,0.59760947]
[1734193897204,0.22822527,101470.0,101460.0,0.77416648]
[1734193898223,0.22822527,101470.0,101460.0,0.77466648]
[1734193899318,0.22822527,101470.0,101460.0,0.77416648]
[1734193900311,0.22822527,101470.0,101460.0,0.77466648]
[1734193900510,0.22822527,101470.0,101460.0,0.82394448]
[1734193901311,0.22822527,101470.0,101460.0,0.82344448]
[1734193905022,0.22822527,101470.0,101460.0,0.85394448]
[1734193907120,0.22822527,101470.0,101460.0,0.67688747]
[1734193909325,0.11049153,101470.0,101460.0,1.22440244]
[1734193909524,0.11049153,101470.0,101460.0,1.22439432]
[1734193909729,0.22822527,101470.0,101460.0,1.22439432]
[1734193910118,0.22822527,101470.0,101460.0,0.73596483]
[1734193910428,0.11049153,101470.0,101460.0,1.05260302]
[1734193911426,0.049273,101470.0,101460.0,1.11382155]
[1734193911621,0.11049153,101470.0,101460.0,1.11382155]
[1734193912125,0.11049153,101470.0,101460.0,1.05260302]
[1734193913432,0.22822527,101470.0,101460.0,1.2887903]
[1734193915222,0.22822527,101470.0,101460.0,1.05260302]
[1734193915427,0.22822527,101470.0,101460.0,1.28885272]
[1734193915627,0.22822527,101470.0,101460.0,1.23705272]
[1734193915837,0.22822527,101470.0,101460.0,1.19457441]
[1734193916128,0.22822527,101470.0,101460.0,1.19460953]
[1734193916329,0.22822527,101470.0,101460.0,0.5970497]
[1734193916330,0.43885265,101470.0,101460.0,0.5970497]
[1734193916530,0.38233744,101470.0,101460.0,0.5970497]
[1734193916831,0.32111891,101470.0,101460.0,0.5970497]
[1734193917031,0.38233744,101470.0,101460.0,0.5970497]
[1734193917230,0.32111891,101470.0,101460.0,0.5970497]
[1734193918434,0.32111891,101470.0,101460.0,0.6463277]
[1734193921338,0.22770038,101470.0,101460.0,0.6463277]
[1734193921535,0.28891891,101470.0,101460.0,1.19501254]
[1734193921732,0.40684071,101470.0,101460.0,0.95862764]
[1734193921933,0.4068377,101470.0,101460.0,2.69501178]
[1734193922137,0.28891891,101470.0,101460.0,2.69501178]
[1734193922334,0.28891891,101470.0,101460.0,2.44184897]
[1734193922532,0.28891891,101470.0,101460.0,2.14646214]
[1734193922729,0.28891891,101470.0,101460.0,2.44184897]
[1734193922941,0.28891891,101470.0,101460.0,0.59718414]
[1734193923233,0.14722738,101470.0,101460.0,0.47129653]
[1734193923433,0.11792274,101470.0,101460.0,2.51962888]
[1734193923637,0.11792274,101470.0,101460.0,2.55152888]
[1734193923840,0.11792274,101470.0,101460.0,2.27744205]
[1734193924036,0.17914127,101470.0,101460.0,2.27744205]
[1734193925344,0.17914127,101470.0,101460.0,2.57283909]
[1734193926039,0.06121853,101470.0,101460.0,2.57283909]
[1734193926432,0.06121853,101470.0,101460.0,2.63190625]
[1734193926637,0.06121853,101470.0,101460.0,1.13190625]
[1734193927531,0.27889912,101480.0,101470.0,0.049273]
[1734193927728,0.27889912,101480.0,101470.0,0.95829981]
[1734193928545,0.27889912,101480.0,101470.0,0.70535429]
[1734193929234,0.27889912,101480.0,101470.0,0.95748351]
[1734193929441,0.27889912,101480.0,101470.0,1.19366586]
[1734193930335,0.27889912,101480.0,101470.0,0.94153664]
[1734193930637,0.27889912,101480.0,101470.0,0.64625535]
[1734193932640,0.34011765,101480.0,101470.0,0.64625535]
[1734193933236,0.34011765,101480.0,101470.0,0.94153664]
[1734193933437,0.27889912,101480.0,101470.0,0.64625535]
[1734193934248,0.22963112,101480.0,101470.0,0.94153664]
[1734193935550,0.31800121,101480.0,101470.0,0.95730452]
[1734193935749,0.31800121,101480.0,101470.0,1.19344903]
[1734193937152,0.36726921,101480.0,101470.0,0.9414988]
[1734193937337,0.36726921,101480.0,101470.0,0.64621751]
[1734193937647,0.27889912,101480.0,101470.0,0.64621751]
[1734193937948,0.31799878,101480.0,101470.0,1.19358102]
[1734193940140,0.31799878,101480.0,101470.0,0.9414988]
[1734193940355,0.31799878,101480.0,101470.0,1.19306215]
[1734193940543,0.36726678,101480.0,101470.0,0.9414988]
[1734193940746,0.34747693,101480.0,101470.0,0.9414988]
[1734193941051,0.25910927,101480.0,101470.0,0.64621751]
[1734193941251,0.3474776,101480.0,101470.0,1.19316713]
[1734193941849,0.36733938,101480.0,101470.0,1.19316713]
[1734193942040,0.36733938,101480.0,101470.0,0.9414988]
[1734193943954,0.31807138,101480.0,101470.0,0.9414988]
[1734193944346,0.31807138,101480.0,101470.0,1.19311685]
[1734193944741,0.31807138,101480.0,101470.0,1.19312433]
[1734193944947,0.31807138,101480.0,101470.0,1.19263764]
[1734193947347,0.36733938,101480.0,101470.0,1.19263764]
[1734193948958,0.3474776,101480.0,101470.0,1.19263764]
[1734193949155,0.25910927,101480.0,101470.0,0.95649313]
[1734193949853,0.20984127,101480.0,101470.0,0.95659204]
[1734193950050,0.23703957,101480.0,101470.0,2.56093121]
[1734193951355,0.18033536,101480.0,101470.0,2.91539541]
[1734193951861,0.2982581,101480.0,101470.0,2.91539541]
[1734193952056,0.2982581,101480.0,101470.0,1.06093121]
[1734193952057,0.23706096,101480.0,101470.0,1.06093121]
[1734193952353,0.11792274,101490.0,101480.0,0.049268]
[1734193952558,0.32686865,101500.0,101490.0,0.049263]
[1734193952758,0.37612665,101500.0,101490.0,1.19281294]
[1734193953562,0.37562665,101500.0,101490.0,0.64629064]
[1734193954452,0.43734518,101500.0,101490.0,0.64629064]
[1734193954756,0.32928161,101500.0,101490.0,0.41335918]
[1734193955057,0.50597415,101500.0,101490.0,0.17713154]
[1734193955559,0.35824677,101500.0,101490.0,0.17713154]
[1734193955952,0.37824704,101500.0,101490.0,0.17713154]
[1734193956555,0.37874704,101500.0,101490.0,0.17713154]
[1734193956745,0.5260852,101500.0,101490.0,0.17713154]
[1734193956946,0.37874704,101500.0,101490.0,0.53793154]
[1734193957354,0.52608057,101500.0,101490.0,0.53793154]
[1734193957657,0.52608057,101500.0,101490.0,0.17713154]
[1734193957958,0.52608253,101500.0,101490.0,0.17713154]
[1734193958262,0.52608253,101500.0,101490.0,0.53793154]
[1734193959458,0.52558253,101500.0,101490.0,0.53793154]
[1734193959961,0.52559954,101500.0,101490.0,0.53793154]
[1734193960461,0.37824704,101500.0,101490.0,0.53793154]
[1734193960852,0.37824704,101500.0,101490.0,0.17713154]
[1734193961453,0.5256172,101500.0,101490.0,0.53793154]
[1734193962054,0.37824704,101500.0,101490.0,0.53793154]
[1734193962263,0.52561694,101500.0,101490.0,0.53793154]
[1734193962559,0.52562263,101500.0,101490.0,0.53793154]
[1734193962758,0.52562229,101500.0,101490.0,0.53793154]
[1734193962951,0.52562091,101500.0,101490.0,0.53793154]
[1734193963758,0.52562091,101500.0,101490.0,0.58719454]
[1734193964159,0.28770984,101500.0,101490.0,0.58719454]
[1734193964365,0.28770984,101500.0,101490.0,0.82342218]
[1734193965266,0.34892837,101500.0,101490.0,0.82342218]
[1734193965966,0.28770984,101500.0,101490.0,0.82342218]
[1734193966565,0.40560236,101500.0,101490.0,0.82342218]
[1734193967169,0.28770984,101500.0,101490.0,0.82342218]
[1734193968066,0.34892837,101500.0,101490.0,0.82342218]
[1734193969568,0.28770984,101500.0,101490.0,0.82342218]
[1734193971666,0.34892837,101500.0,101490.0,0.82342218]
[1734193971872,0.34892837,101500.0,101490.0,0.53793154]
[1734193974368,0.52562091,101500.0,101490.0,0.53793154]
[1734193976177,0.50562064,101500.0,101490.0,0.53793154]
[1734193976373,0.35824677,101500.0,101490.0,0.53793154]
[1734193976967,0.35824677,101500.0,101490.0,0.17713154]
[1734193977367,0.7802653,101500.0,101490.0,0.12723154]
[1734193977582,0.049263,101490.0,101480.0,0.23622764]
[1734193977772,0.32096871,101490.0,101480.0,0.23622764]
[1734193977971,0.32096871,101490.0,101470.0,0.94158319]
[1734193978276,0.12678993,101480.0,101470.0,1.0196261]
[1734193978478,0.11790936,101480.0,101470.0,1.4130261]
[1734193979277,0.11790936,101480.0,101470.0,1.41321345]
[1734193979477,0.11790936,101480.0,101470.0,1.41271345]
[1734193980371,0.11790936,101480.0,101470.0,1.41321345]
[1734193980981,0.40588007,101490.0,101470.0,1.47227365]
[1734193981179,0.25849289,101490.0,101480.0,0.94167149]
[1734193981478,0.25849289,101490.0,101480.0,0.95864264]
[1734193982275,0.28797071,101490.0,101480.0,0.6463438]
[1734193982478,0.40592602,101490.0,101480.0,1.22515305]
[1734193982679,0.22843884,101490.0,101480.0,0.98887725]
[1734193983076,0.37582602,101490.0,101480.0,0.98887725]
[1734193983285,0.22843884,101490.0,101480.0,0.98887725]
[1734193985886,0.22843884,101490.0,101480.0,1.34967725]
[1734193990184,0.11795531,101490.0,101480.0,1.41089578]
[1734193990679,0.11795531,101490.0,101480.0,1.1582218]
[1734193990879,0.11795531,101490.0,101480.0,1.4099073]
[1734193992682,0.17917384,101490.0,101480.0,1.4099073]
[1734193992874,0.17917384,101490.0,101480.0,1.41982155]
[1734193994684,0.17917384,101490.0,101480.0,1.4099073]
[1734193995182,0.22843684,101490.0,101480.0,1.4099073]
[1734193995381,0.22843684,101490.0,101480.0,1.31788877]
[1734193995577,0.29153684,101490.0,101480.0,1.31788877]
[1734193996990,0.43892402,101490.0,101480.0,1.31788877]
[1734193997386,0.32096871,101490.0,101480.0,1.31788877]
[1734193998191,0.4389865,101490.0,101480.0,1.31788877]
[1734193998387,0.29159932,101490.0,101480.0,1.31788877]
[1734193998591,0.4389865,101490.0,101480.0,1.31788877]
[1734194000976,0.29159932,101490.0,101480.0,1.3791073]
[1734194001178,0.26109932,101490.0,101480.0,1.3791073]
[1734194002693,0.11801779,101490.0,101480.0,1.3791073]
[1734194002894,0.11801779,101490.0,101480.0,1.4118073]
[1734194003085,0.11801779,101490.0,101480.0,3.26615205]
[1734194003687,0.11801779,101490.0,101480.0,1.76615205]
[1734194004285,0.11801779,101490.0,101480.0,1.76622576]
[1734194005382,0.17923632,101490.0,101480.0,1.76622576]
[1734194005888,0.17923632,101490.0,101480.0,1.41188101]
[1734194006089,0.11801779,101490.0,101480.0,1.41188101]
[1734194006596,0.22849932,101490.0,101480.0,1.35066248]
[1734194006790,0.26029932,101490.0,101480.0,1.31796248]
[1734194007095,0.29049932,101490.0,101480.0,1.31796248]
[1734194007290,0.4378865,101490.0,101480.0,1.31796248]
[1734194007695,0.31986871,101490.0,101480.0,1.55430358]
[1734194008396,0.31986871,101490.0,101480.0,1.61552211]
[1734194008596,0.27060571,101490.0,101480.0,1.37918101]
[1734194008895,0.14979273,101490.0,101480.0,1.37918101]
[1734194009198,0.21101126,101490.0,101480.0,1.37918101]
[1734194009698,0.14979273,101490.0,101480.0,1.37918101]
[1734194010583,0.14979273,101490.0,101480.0,1.73352576]
[1734194010994,0.14979273,101490.0,101480.0,1.77664118]
[1734194012083,0.11799273,101490.0,101480.0,1.77664118]
[1734194012284,0.11799273,101490.0,101480.0,1.80799085]
[1734194012484,0.11799273,101490.0,101480.0,1.51491577]
[1734194012689,0.11799273,101490.0,101480.0,2.97180035]
[1734194012991,0.11799273,101490.0,101480.0,3.06098498]
[1734194013597,0.11799273,101500.0,101480.0,3.30422739]
[1734194013791,0.11799273,101500.0,101490.0,0.85838674]
[1734194013992,0.11799273,101500.0,101490.0,1.10852191]
[1734194014192,0.26537991,101510.0,101490.0,1.40611747]
[1734194014396,0.11799273,101510.0,101500.0,0.86080575]
[1734194014592,0.11849273,101510.0,101500.0,1.11094092]
[1734194014798,0.11849273,101510.0,101500.0,1.04972239]
[1734194014988,0.13841788,101510.0,101500.0,1.04972239]
[1734194015398,0.13841788,101510.0,101500.0,1.2858416]
[1734194015602,0.13791788,101510.0,101500.0,1.2858416]
[1734194016600,0.13841788,101510.0,101500.0,1.2858416]
[1734194017397,0.13841788,101510.0,101500.0,1.03570643]
[1734194017597,0.13791788,101510.0,101500.0,1.03570643]
[1734194018005,0.11799273,101510.0,101500.0,0.80151427]
[1734194018194,0.11799273,101510.0,101500.0,1.11033133]
[1734194018405,0.42042508,101520.0,101510.0,0.049253]
[1734194018705,0.42042508,101520.0,101510.0,0.70721227]
[1734194018907,0.2730379,101520.0,101510.0,0.70721227]
[1734194019402,0.2730379,101520.0,101510.0,0.410053]
[1734194020207,0.29231273,101520.0,101510.0,0.410053]
[1734194020703,0.29281273,101520.0,101510.0,0.410053]
[1734194021304,0.29281273,101520.0,101510.0,0.47127153]
[1734194021507,0.29231273,101520.0,101510.0,0.47127153]
[1734194022404,0.2310942,101520.0,101510.0,0.47127153]
[1734194022609,0.18086613,101520.0,101510.0,0.47127153]
[1734194023606,0.18036613,101520.0,101510.0,0.47127153]
[1734194023813,0.17046756,101520.0,101510.0,0.70721227]
[1734194024209,0.05247483,101520.0,101510.0,0.70721227]
[1734194024510,0.44184344,101530.0,101520.0,0.049248]
[1734194024711,0.29445626,101530.0,101520.0,0.410048]
[1734194024908,0.29445626,101530.0,101520.0,0.47126653]
[1734194027008,0.30418036,101530.0,101520.0,0.47126653]
[1734194027723,0.24296183,101530.0,101520.0,0.47126653]
[1734194028017,0.30418036,101530.0,101520.0,0.47126653]
[1734194028602,0.30468036,101530.0,101520.0,0.47126653]
[1734194029418,0.32410498,101530.0,101520.0,0.47126653]
[1734194031411,0.27485998,101530.0,101520.0,0.47126653]
[1734194031618,0.20391735,101530.0,101520.0,0.53248506]
[1734194032012,0.08592462,101530.0,101520.0,0.47126653]
[1734194033305,0.05292462,101530.0,101520.0,0.47126653]
[1734194034524,0.05292462,101530.0,101520.0,0.70720727]
[1734194035018,0.05292462,101530.0,101520.0,0.47126653]
[1734194035714,0.05292462,101530.0,101520.0,0.54244057]
[1734194036510,0.21019024,101540.0,101530.0,0.049244]
[1734194036717,0.21019024,101540.0,101530.0,0.47126253]
[1734194037627,0.21069024,101540.0,101530.0,0.47126253]
[1734194037921,0.27190877,101540.0,101530.0,0.47126253]
[1734194038608,0.27140877,101540.0,101530.0,0.47126253]
[1734194039123,0.29076386,101540.0,101530.0,0.47126253]
[1734194039622,0.29126386,101540.0,101530.0,0.47126253]
[1734194040121,0.29126386,101540.0,101530.0,0.410044]
[1734194040513,0.29076386,101540.0,101530.0,0.410044]
[1734194041522,0.29126386,101540.0,101530.0,0.410044]
[1734194042620,0.29076386,101540.0,101530.0,0.410044]
[1734194042811,0.80339537,101540.0,101520.0,0.64598874]
[1734194043017,0.43843852,101530.0,101520.0,0.3608]
[1734194043420,0.32074971,101530.0,101520.0,0.3608]
[1734194045927,0.049248,101520.0,101510.0,0.59674074]
[1734194046114,0.32032556,101520.0,101510.0,0.59674074]
[1734194046524,0.25910703,101520.0,101510.0,0.59674074]
[1734194047623,0.32032556,101520.0,101510.0,0.59674074]
[1734194049126,0.46771274,101520.0,101510.0,0.59674074]
[1734194049324,0.32032556,101520.0,101510.0,0.59674074]
[1734194049520,0.46771274,101520.0,101510.0,0.59674074]
[1734194049915,0.46776662,101520.0,101510.0,0.59674074]
[1734194050125,0.41119077,101520.0,101500.0,0.59674074]
[1734194050325,0.43913413,101510.0,101500.0,0.3608]
[1734194050622,0.38257724,101510.0,101500.0,0.3613]
[1734194050828,0.38257724,101510.0,101500.0,0.0005]
[1734194051526,0.33332424,101510.0,101490.0,0.64748042]
[1734194051733,0.32929453,101500.0,101490.0,0.64748042]
[1734194052027,0.32062442,101500.0,101490.0,0.59821842]
[1734194052221,0.20289506,101500.0,101490.0,0.59821842]
[1734194053530,0.20289506,101500.0,101490.0,0.36227768]
[1734194053725,0.20289506,101500.0,101490.0,0.59821842]
[1734194054222,0.20289506,101500.0,101490.0,0.36227768]
[1734194057526,0.20289506,101500.0,101490.0,0.3613]
[1734194057730,0.20289506,101500.0,101490.0,0.410563]
[1734194058328,0.21275681,101500.0,101490.0,0.410563]
[1734194058535,0.21275681,101500.0,101490.0,0.410063]
[1734194059527,0.21275681,101500.0,101490.0,0.410563]
[1734194059932,0.11047653,101500.0,101490.0,0.410563]
[1734194060135,0.11047653,101500.0,101490.0,0.441463]
[1734194061232,0.23048536,101510.0,101500.0,0.049258]
[1734194061433,0.29170389,101510.0,101500.0,0.410058]
[1734194061636,0.17397453,101510.0,101500.0,0.410058]
[1734194061827,0.17397453,101510.0,101500.0,0.3608]
[1734194062030,0.35292242,101510.0,101500.0,0.3608]
[1734194062230,0.36276205,101510.0,101500.0,0.3608]
[1734194063834,0.31350605,101510.0,101490.0,0.441462]
[1734194064142,0.17169506,101500.0,101490.0,0.441462]
[1734194065742,0.11047653,101500.0,101490.0,0.441462]
[1734194066144,0.17169506,101500.0,101490.0,0.441462]
[1734194067051,0.11047653,101500.0,101490.0,0.441462]
[1734194067239,0.06121853,101500.0,101490.0,0.53368053]
[1734194067446,0.06121853,101500.0,101490.0,0.472462]
[1734194068541,0.06121853,101500.0,101490.0,0.70790274]
[1734194069941,0.06121853,101500.0,101490.0,0.76912127]
[1734194070137,0.26130289,101510.0,101500.0,0.049258]
[1734194070442,0.14357353,101510.0,101500.0,0.410058]
[1734194070644,0.14357353,101510.0,101500.0,0.64599874]
[1734194071439,0.26130289,101510.0,101500.0,0.64599874]
[1734194072344,0.34958028,101510.0,101500.0,0.64599874]
[1734194075445,0.26130289,101510.0,101500.0,0.64599874]
[1734194075953,0.34966599,101510.0,101500.0,0.94140943]
[1734194076154,0.34966599,101510.0,101500.0,1.18980574]
[1734194076350,0.34966599,101510.0,101500.0,0.64599874]
[1734194076549,0.20008436,101510.0,101500.0,0.64599874]
[1734194076743,0.26130289,101510.0,101500.0,0.64599874]
[1734194079353,0.26130289,101510.0,101500.0,1.18934829]
[1734194080752,0.26130289,101510.0,101500.0,0.94140943]
[1734194080956,0.31658039,101510.0,101500.0,1.250083]
[1734194081343,0.31658039,101510.0,101500.0,1.18886447]
[1734194081543,0.31658039,101510.0,101500.0,1.18892403]
[1734194084255,0.31658039,101510.0,101500.0,0.95298329]
[1734194084755,0.31658039,101510.0,101500.0,1.01420182]
[1734194085657,0.20610686,101510.0,101500.0,1.07542035]
[1734194085850,0.0883775,101510.0,101500.0,1.04620182]
[1734194086051,0.0883775,101510.0,101500.0,2.54630454]
[1734194092151,0.0883775,101510.0,101500.0,2.18550454]
[1734194092352,0.0883775,101510.0,101500.0,2.90710454]
[1734194094161,0.0883775,101510.0,101500.0,3.26160975]
[1734194094959,0.0883775,101510.0,101500.0,2.90710454]
[1734194095354,0.0883775,101510.0,101500.0,3.26160975]
[1734194097158,0.0883775,101510.0,101500.0,3.32242372]
[1734194097358,0.37705847,101520.0,101510.0,0.049253]
[1734194097554,0.37705847,101520.0,101510.0,1.25002108]
[1734194097754,0.31583994,101520.0,101510.0,1.25002108]
[1734194098154,0.24659466,101520.0,101510.0,1.25002108]
[1734194098357,0.20616968,101520.0,101510.0,1.01393307]
[1734194098558,0.08844032,101520.0,101510.0,1.04583307]
[1734194098765,0.08844032,101520.0,101510.0,1.40033828]
[1734194099260,0.23916968,101530.0,101520.0,0.049248]
[1734194099457,0.23916968,101530.0,101520.0,1.24995846]
[1734194099659,0.23866968,101530.0,101520.0,1.07511459]
[1734194100265,0.23866968,101530.0,101520.0,2.57511459]
[1734194100752,0.20666968,101530.0,101520.0,2.57511459]
[1734194101750,0.20666968,101530.0,101520.0,2.32756307]
[1734194101956,0.08894032,101530.0,101520.0,2.60615875]
[1734194103377,0.0005,101530.0,101520.0,2.96066396]
[1734194103667,0.36095571,101540.0,101520.0,2.96066396]
[1734194103860,0.36095571,101540.0,101530.0,0.70711529]
[1734194104061,0.41019471,101540.0,101530.0,0.70711529]
[1734194104263,0.41019471,101540.0,101530.0,0.88395807]
[1734194104666,0.41069471,101540.0,101530.0,0.70711529]
[1734194105764,0.41019471,101540.0,101530.0,0.70711529]
[1734194106159,0.41019471,101540.0,101530.0,0.8227038]